Cogmind - Beta 16 @@@ ROGUE MODE // 2026.01.07 @ 09:01:29 Player: oberon720 Result: Destroyed by D-53 Grenadier with Mini Grenade Launcher Performance ------------- Evolutions (0) 0 Regions Visited (2) 400 Robots Destroyed (40) 200 Value Destroyed (818) 818 Prototype IDs (3) 60 Alien Tech Used (0) 0 Bonus (0) 0 TOTAL SCORE: 1478 Bonus ------- None Cogmind --------- Core Integrity 0/250 Matter 251/300 Energy 250/250 System Corruption 4% Temperature Cool (0) Movement Rolling (200) Ox8 Location -10/Mines Parts ------- > --- POWER (1) -------- Ion Engine > --- PROPULSION (2) --- Light Treads Wheel > --- UTILITY (2) ------ Huge Storage Unit > --- WEAPON (2) ------- Shotgun > --- INVENTORY (25) --- Light Ion Engine Light Nuclear Core Light Nuclear Core Light Treads Wheel Wheel Improved Heat Sink Large Storage Unit Visual Processing Unit Power Shielding Propulsion Shielding Weapon Shielding Light Armor Plating Light Armor Plating Light Armor Plating Light Armor Plating Hacking Suite Particle Cannon Shotgun Light Cannon Light Cannon Datajack Ripper Peak State ------------ > --- POWER ------------ Ion Engine > --- PROPULSION ------- Light Treads Wheel > --- UTILITY ---------- Huge Storage Unit Transport Network Coupler > --- WEAPON ----------- Particle Cannon Shotgun > --- INVENTORY -------- Ion Engine Light Nuclear Core Light Nuclear Core Light Treads Light Treads Wheel Wheel Heat Sink Improved Heat Sink Large Storage Unit Medium Matter Pod High-capacity Matter Pod Visual Processing Unit Power Shielding Propulsion Shielding Weapon Shielding Light Armor Plating Light Armor Plating Light Armor Plating Light Armor Plating Light Armor Plating Medium Laser Particle Cannon Light Cannon Light Cannon [Rating: 12] Favorites ----------- Power Ion Engine Engine Ion Engine Propulsion Light Treads Treads Light Treads Wheel Wheel Utility Huge Storage Unit Storage Huge Storage Unit Processor Transport Network Coupler Protection Light Armor Plating Weapon Beam Cannon Energy Gun Medium Laser Energy Cannon Beam Cannon Ballistic Gun Assault Rifle Build | -11 -10 -10 ------- Run | Yrd Mat Min Slots Evolved . | . . . Power . | . . . Propulsion . | . . . Utility . | . . . Weapon . | . . . Parts Attached 24 | 8 14 2 Power 5 | 1 3 1 Engine 5 | 1 3 1 Core . | . . . Reactor . | . . . Propulsion 8 | 3 5 . Treads 4 | 2 2 . Leg . | . . . Wheel 4 | 1 3 . Hover . | . . . Flight . | . . . Utility 5 | 2 2 1 Device . | . . . Storage 3 | 2 1 . Processor 1 | . 1 . Hackware . | . . . Protection 1 | . . 1 Artifact . | . . . Weapon 6 | 2 4 . Energy Gun 1 | 1 . . Energy Cannon 2 | . 2 . Ballistic Gun 3 | 1 2 . Ballistic Cannon . | . . . Launcher . | . . . Special Weapon . | . . . Impact Weapon . | . . . Slashing Weapon . | . . . Piercing Weapon . | . . . Special Melee Weapon . | . . . Unidentified Prototypes . | . . . Parts Lost 6 | . 3 3 Power 1 | . 1 . Propulsion 2 | . 1 1 Utility 1 | . . 1 Weapon 2 | . 1 1 Highest Loss Streak 3 | . 3 3 To Critical Strikes . | . . . Average Backups 16 | 2 15 24 Power 1 | . 1 3 Propulsion 3 | 1 3 3 Utility 7 | . 7 12 Weapon 3 | . 3 4 Tool/Special . | . . . Unused Backups 24 | . 5 19 Power 3 | . . 3 Propulsion . | . . . Utility 14 | . 4 10 Weapon 6 | . 1 5 Tool/Special 1 | . . 1 Average Slot Usage (%) 99 | . 99 99 Engine 13 | . 13 14 Treads 15 | . 15 15 Wheel 12 | . 12 12 Storage 19 | . 20 14 Processor 8 | . 7 13 Energy Cannon 13 | . 13 13 Ballistic Gun 13 | . 13 14 Peak Build Rating 12 | 7 12 12 Average Rating 9 | 5 8 11 On Entrance 6 | . 7 12 Avg Prop Armor Cover (%) 11 | 9 12 12 Naked Turns . | . . . Heaviest Build 95 | 15 95 92 Greatest Support 40 | 20 40 10 Greatest Overweight (x) 9 | 1 9 9 Average Overweight (x) 7 | . 7 8 Largest Inventory Capacity 25 | 8 25 25 Average Capacity 23 | 7 23 25 Most Carried 25 | 5 25 25 Average Carried 16 | 2 15 24 Final Capacity 25 | 8 25 25 Final Carried 25 | 3 25 23 Class Distribution -------------------- 100% | Mutant Dominant Class ---------------- Mutant | -10/Materials Mutant | -10/Mines Resources | -11 -10 -10 ----------- Run | Yrd Mat Min Matter Collected 1306 | 383 803 120 Remotely . | . . . Salvage Created 1322 | 185 978 159 Parts 91 | 18 61 12 Haulers Intercepted 2 | . 2 . Recyclers Shooed . | . . . Parts Field Recycled . | . . . Retrieved Matter . | . . . Parts Self-Destructed . | . . . Prevented . | . . . Parts Restored . | . . . Kills | -11 -10 -10 ------- Run | Yrd Mat Min Combat Hostiles Destroyed 24 | . 18 6 Guns 12 | . 8 4 Cannons 12 | . 10 2 Classes Destroyed 10 | 3 5 2 Worker 3 | 2 . 1 Builder 1 | . . 1 Tunneler 3 | 3 . . Hauler 2 | . 2 . Recycler 2 | 1 1 . Operator 3 | . 3 . Watcher 3 | . 3 . Swarmer 6 | . 3 3 Grunt 17 | . 15 2 Assembled 1 | . . 1 Best Kill Streak 4 | 4 3 3 Combat Bots Only 3 | . 3 3 Max Kills in Single Turn 2 | 1 2 1 Gunslinging . | . . . Exploded . | . . . Melee . | . . . Uniques/NPCs Destroyed . | . . . Combat | -11 -10 -10 -------- Run | Yrd Mat Min Hostile Shots Fired 145 | . 84 61 Missed 30 | . 12 18 Hits 115 | . 72 43 Projectile 115 | . 72 43 AOE 10 | . . 10 Critical Strikes 1 | . . 1 Damage Taken 1566 | . 766 800 Core 289 | . 130 159 Absorbed by Shields . | . . . Regen/Repaired (Parts) 494 | . 494 . Core Remaining (%) 100 | 100 . . Volleys Fired 98 | 10 72 16 Largest 2 | 2 2 2 Hottest 91 | 70 91 91 Shots Fired 197 | 20 144 33 Gun 108 | 20 72 16 Cannon 89 | . 72 17 Launcher . | . . . Special . | . . . Kinetic 98 | 10 72 16 Thermal 99 | 10 72 17 Explosive . | . . . Electromagnetic . | . . . Robot Hit Streak 11 | 6 11 8 Robot Miss Streak 4 | 1 4 4 Penetration Max . | . . . Secondary Targets . | . . . Shots Hit Robots 114 | 13 79 22 Core Hits 56 | 8 35 13 Critical Kills . | . . . Critical Parts Destroyed . | . . . Critical Strikes . | . . . Melee Attacks . | . . . Impact . | . . . Slashing . | . . . Piercing . | . . . Sneak Attacks . | . . . Combat Hostiles . | . . . Follow-up Attacks . | . . . Damage Inflicted 1741 | 137 1210 394 Guns 714 | 137 406 171 Cannons 1027 | . 804 223 Explosions . | . . . Melee . | . . . Ramming . | . . . Kinetic 627 | 50 406 171 Thermal 1114 | 87 804 223 Explosive . | . . . Electromagnetic . | . . . Impact . | . . . Slashing . | . . . Piercing . | . . . Highest Corruption 4 | . 4 4 Average Corruption 2 | . 1 4 Corruption Purged . | . . . Corruption Blocked . | . . . Effects 24 | . 13 11 Message Errors 8 | . 6 2 Matter Fused 8 | . 4 4 Heat Flow Errors 2 | . 1 1 Energy Discharges 2 | . 1 1 Data Loss (minor) 2 | . . 2 Misfires 1 | . . 1 Alerts 1 | . 1 . Overload Shots . | . . . Overflow Damage 8 | . 8 . Projectiles 8 | . 8 . Explosions . | . . . Melee . | . . . Knockbacks . | . . . Impact . | . . . Kinetic . | . . . Secondary . | . . . Self-Inflicted Damage . | . . . Shots . | . . . Rammed . | . . . Targets Rammed . | . . . Kicked . | . . . Crushed . | . . . Highest Temperature 366 | 90 198 366 Average Temperature 73 | 36 58 131 Received Heat Transfer 521 | . 366 155 Effects 1 | . . 1 Damage (minor) 1 | . . 1 Siege Activations . | . . . Martial Activations . | . . . Shielding Activations . | . . . Robots Disrupted . | . . . Combat Hostiles . | . . . Robots Corrupted . | . . . Combat Hostiles . | . . . Parts Fried . | . . . Impact Corruptions . | . . . Robots Melted . | . . . Combat Hostiles . | . . . Parts Melted 1 | . . 1 Heat Transferred 2368 | 259 1702 407 Parts Sabotaged . | . . . Parts Stolen . | . . . Parts Stripped . | . . . Power Chain Reactions . | . . . Alert | -11 -10 -10 ------- Run | Yrd Mat Min Maximum Alert Level 1 | . 1 . Low Security (%) 72 | 100 64 100 Level 1 27 | . 35 . Level 2 . | . . . Level 3 . | . . . Level 4 . | . . . Level 5 . | . . . High Security . | . . . Max Security . | . . . Peak Influence 238 | 10 238 168 Initial 73 | . . 73 Average 115 | 3 135 62 Influence Increases 776 | 30 616 130 Destroy 0b10 Robot/C 460 | . 360 100 Destroy 0b10 Robot/NC 85 | 30 45 10 Destroy Leader 110 | . 90 20 Successful Hack 26 | . 26 . Select Force Hacks 60 | . 60 . Destroy Structure 5 | . 5 . Lose Combat Pursuer 30 | . 30 . Influence Decreases 776 | 30 426 320 Entered New Map 117 | . . 117 Time Decay 629 | 30 396 203 Lost Part 30 | . 30 . Squads Dispatched 6 | . 6 . Investigation 4 | . 4 . Extermination . | . . . Reinforcement 2 | . 2 . Assault . | . . . Garrison . | . . . Intercept . | . . . Searches Triggered . | . . . Construction Impeded . | . . . Haulers Reinforced . | . . . Active Scanning Responses . | . . . Cargo Convoy Interrupts . | . . . Stealth | -11 -10 -10 --------- Run | Yrd Mat Min Distress Signals . | . . . Communications Jammed . | . . . Distress Signals . | . . . Times Spotted 56 | . 30 26 Peak Tracking Total 21 | . 3 21 Tactical Retreats 2 | . 2 . Traps | -11 -10 -10 ------- Run | Yrd Mat Min Traps Triggered 5 | . 5 . Indirectly . | . . . Trap Hack Attempts . | . . . Triggered . | . . . Disarmed . | . . . Reprogrammed . | . . . Reused . | . . . Traps Extracted . | . . . Installed . | . . . Triggered . | . . . Machines | -11 -10 -10 ---------- Run | Yrd Mat Min Machines Disabled . | . . . Max in Single Turn . | . . . Machines Repaired . | . . . Machines Dismantled . | . . . Machines Sabotaged . | . . . Overloaded Fab Kills . | . . . Hacking | -11 -10 -10 --------- Run | Yrd Mat Min Machines Accessed 9 | . 9 . Terminals 6 | . 6 . Fabricators . | . . . Repair Stations 1 | . 1 . Recycling Units 2 | . 2 . Scanalyzers . | . . . Garrison Access . | . . . Total Hacks 26 | . 26 . Successful 12 | . 12 . Failed 14 | . 14 . Catastrophic 3 | . 3 . Database Lockouts . | . . . Manual 18 | . 18 . Terminals 17 | . 17 . Fabricators . | . . . Repair Stations 5 | . 5 . Recycling Units 4 | . 4 . Scanalyzers . | . . . Garrison Access . | . . . Terminal Hacks 4 | . 4 . Prototype ID Bank 1 | . 1 . Alert Level 2 | . 2 . Recall Investigation 1 | . 1 . Fabricator Hacks . | . . . Repair Station Hacks 4 | . 4 . Scan Component 2 | . 2 . Repair 2 | . 2 . Recycling Unit Hacks . | . . . Scanalyzer . | . . . Garrison Access Hacks . | . . . Unauthorized Hacks 4 | . 4 . Terminals 1 | . 1 . Assimilate 1 | . 1 . Fabricators . | . . . Repair Stations . | . . . Recycling Units 3 | . 3 . Reject 1 | . 1 . Tunnel 2 | . 2 . Scanalyzers . | . . . Garrison Access . | . . . Data Cores Recovered 1 | . 1 . Used . | . . . Hacking Detections 7 | . 7 . Full Trace Events . | . . . Feedback Events . | . . . Feedback Blocked . | . . . Robot Schematics Acquired . | . . . Robots Built . | . . . Authchips . | . . . Time . | . . . Total Robot Build Rating . | . . . Part Schematics Acquired . | . . . Parts Built . | . . . Authchips . | . . . Time . | . . . Total Part Build Rating . | . . . Part Studies Acquired . | . . . Parts Repaired 2 | . 2 . Time 52 | . 52 . Parts Recycled . | . . . Recycled Matter . | . . . Retrieved Matter . | . . . Retrieved Components . | . . . Parts Scanalyzed . | . . . Part Schematics Acquired . | . . . Parts Damaged . | . . . Bothacking | -11 -10 -10 ------------ Run | Yrd Mat Min Used RIF Installer . | . . . Robots Hacked . | . . . Non-combat . | . . . Combat . | . . . Robot Hacks Applied . | . . . Relay Couplers Released . | . . . Fabnet Peak Effective % . | . . . Robots Rewired . | . . . Allies Hacked . | . . . Hacks Repelled . | . . . Allies | -11 -10 -10 -------- Run | Yrd Mat Min Total Allies 3 | . . 3 Largest Group 3 | . . 3 Highest-Rated Group 40 | . . 40 Highest-Rated Ally 16 | . . 16 Total Orders . | . . . Ally Attacks 3 | . . 3 Total Damage . | . . . Kills . | . . . Allies Corrupted . | . . . Allies Melted . | . . . Intel | -11 -10 -10 ------- Run | Yrd Mat Min Active Infowar (turns) 1808 | . 1236 572 T.N.C. 1808 | . 1236 572 Robot Analysis Total . | . . . Derelict Logs Recovered 2 | . . 2 Drone Launches . | . . . Drone Recoveries . | . . . Exploration | -11 -10 -10 ------------- Run | Yrd Mat Min Turns Passed 3051 | 129 2331 591 Spaces Moved 1193 | 58 893 242 Core 15 | 15 . . Treads 29 | 23 6 . Legs . | . . . Wheels 1149 | 20 887 242 Hover . | . . . Flight . | . . . Fastest Speed 50 | 50 95 200 Average Speed 189 | 109 187 214 Slowest Speed 320 | 160 320 215 Overloaded Moves . | . . . Propulsion Burnouts . | . . . Robots Hopped . | . . . Potential Cave-ins . | . . . Cave-ins Triggered . | . . . Exploration Rate (%) 51 | 4 100 51 Regions Visited 2 Branch Regions 1 Pre-discovered Areas 3 | . 2 1 Known Exits Taken . | . . . Unknown Exits Taken 2 | 1 1 . Scrap Searched . | . . . Spaces Dug . | . . . Terrain Destroyed . | . . . Melee . | . . . Projectile . | . . . AOE . | . . . Terrain Rammed . | . . . Walls Destroyed . | . . . Machines Disabled . | . . . Actions | -11 -10 -10 --------- Run | Yrd Mat Min Total 1776 | 104 1394 278 Wait 370 | 21 342 7 Move 1191 | 57 892 242 Hop . | . . . Pick Up 45 | 8 35 2 Fast Attach 6 | 2 4 . Attach 9 | 5 3 1 Detach . | . . . Swap 42 | 1 33 8 Drop 15 | . 13 2 Fire 98 | 10 72 16 Melee . | . . . Ram . | . . . Kick . | . . . Crush . | . . . Escape Stasis . | . . . Rewire . | . . . Trap . | . . . Miscellaneous . | . . . Route ------- -11/Scrapyard -10/Materials (discovered 6 exits: [*Mat x3] / [*Min x2] / [*Sub]) -10/Mines (discovered 1 exit: [*Mat]) History --------- Turn | Location | Event 7 | -11/Scrapyard | Discovered new exit (range 15) 130 | -11/Scrapyard | Entered Materials 260 | -10/Materials | Discovered new exit (range 13) 308 | -10/Materials | Build established: Mutant 320 | -10/Materials | Discovered new exit (range 12) 374 | -10/Materials | Repaired Weapon Shielding 401 | -10/Materials | Repaired Huge Storage Unit 978 | -10/Materials | Discovered new exit (range 16) 1589 | -10/Materials | Discovered new exit (range 4) 1814 | -10/Materials | Core integrity fell below 50% 1834 | -10/Materials | Lost 3 parts (1p1n1w) 1858 | -10/Materials | Discovered new exit (range 15) 2397 | -10/Materials | Discovered new exit (range 11) 2461 | -10/Materials | Entered Mines 2488 | -10/Mines | Learned Materials trap positions 2524 | -10/Mines | Core integrity fell below 20% 2751 | -10/Mines | Assisted by bots powering up and referring to "LRC-V3" 2755 | -10/Mines | Learned location of Zion (-6) 2823 | -10/Mines | A weapon hastily lodged in a ceiling crevice suddenly fell to the ground 2864 | -10/Mines | Discovered new exit (range 13) 3007 | -10/Mines | Assembled infested the area 3012 | -10/Mines | Assisted by a Guerilla fighting off Assembled 3052 | -10/Mines | Destroyed by D-53 Grenadier with Mini Grenade Launcher Last Messages --------------- K-01 Serf collects debris. The unstable cave ceiling collapses. as-61809 suffers critical hit (Destroy). as-61809 destroyed. Trooper 1a destroyed. as-52683 destroyed. Mercenary 1a destroyed. as-07297 destroyed. Particle Cannon destroyed. as-14174 destroyed. as-47562 destroyed. as-03582 destroyed. as-28576 destroyed. K-01 Serf collects debris. Lgt. Armor Plating destroyed. as-17409 destroyed. as-42939 destroyed. as-52649 destroyed. as-38778 destroyed. The unstable cave ceiling collapses. Map ----- +----------------------------------------------------+ | ????????????????????????????????????? | | ????????????????????????????????????? | | ????????????#####???#####???????????? | | ?????????#### ##?## ##??????????? | | ????????## ### < ##?????????? | | ??????### ###???????? | | ???#### ##??????? | | ??## #??????? | | ??# ## #### ##?????? | | ?## #### ##??## ##????? | | ?# ### #??## ##????# #????? | | ?# ##?# #???#####?????# ###### | | ?## ##??# #?????????????# | | ??## #???# #?????????????## | | ???# ##### #??????????????# ##### | | ???# #??????????????## #???? | | ???####### ###?????????????# ##???? | | ?????????# #????????????## ##????? | | ?????????### #????????????# #?????? | | ???????????# #????????????# ##?????? | | ???????????# #??????????? ###??????? | | ???????????# #?????????? ?????????? | | ????????#### ####?????? #?????????? | | ????????# #???? ##????????### | | ???????## ##?? #??????????# | | ???????# @ #?# ???????????# | | ???????# # ### #????????????# | | ???????# ## ?????????????### | | ???????# a ### ##??????????# | | ???????# a a d % #??????# ## | | ???????## a a########????????#??# | | ????????# = #?????????????????? | | ????????## a ##?????????????????? | | ?????????## #a #?????????????????? | | ??????????#### % #????????????????? | | ?????????????? #???????????????? | | ??????????????# ??????????????? | | ???????????????? ?????????????? | | ???????????????? a ????????????# | | ???????????????? ???????????? | | ????????????????? ???????????? | | ??????????????????" ##?????????????? | | ?????????????????? ???????????????? | | ????????????????????????????????????? | | ????????????????????????????????????? | | ????????????????????????????????????? | | ????????????????????????????????????? | | ????????????????????????????????????? | | ????????????????????????????????????? | | ????????????????????????????????????? | +----------------------------------------------------+ Best States ------------- Heat Dissipation 25 Energy Generation 10 Energy Capacity 250 Matter Stores 400 Matter Capacity 400 Sight Range 16 Terrain Scan Density 10 Armor Coverage 150 Evasion (%) 50 Recoil Reduction 2 Item Schematics ----------------- None Robot Schematics ------------------ None Fabricated ------------ Nothing Repaired ---------- Weapon Shielding | 60% | -10/Materials Huge Storage Unit | 21% | -10/Materials Studied --------- None Alien Tech Used ----------------- None Achievements -------------- I Have A Map? Challenges ------------ None Game ------ Seed RainbowJammingConstruct Manual? 0 Play Time 00:39:16 Cumulative 37.4 hours Start 2026.01.07 @ 08:10:04 End 2026.01.07 @ 09:01:29 Sessions 1 Manual Loads 0 Difficulty Rogue Special Mode None Game No. 77 Rogue 74 Adventurer 0 Explorer 3 Win Type - Total 0 Types 0/0/0/0/0/0/0/0/0/0 Lore% 18 Gallery% 30 Achievement% 22 Wizard Run 0 Options --------- Layout 0 ASCII 0 Keyboard 0 Movement Mouse Keybinds 0 Fullscreen 2 Font 18/SmallcapsGlow Map View 76x50 Zoom Use 0% Tactical HUD 0 Map Filters NONE Filters NONE Steam 1 RUN: b340eba4-a18f-48a3-a2a5-2b260ff03621